bitfinex/quotes_BTCUSD_20241223
["timestamp","ask_amount","ask_price","bid_price","bid_amount"]
[1734934793734,0.00022628,95310.0,95309.0,0.005]
[1734934793935,0.00022628,95310.0,95303.0,0.209856]
[1734934794139,0.00022628,95310.0,95308.0,0.209844]
[1734934794546,0.00022628,95310.0,95309.0,0.002]
[1734934795107,0.00022628,95310.0,95308.0,0.209844]
[1734934795315,0.00022628,95310.0,95309.0,0.005]
[1734934795507,0.00022628,95310.0,95308.0,0.209844]
[1734934795918,0.00022628,95310.0,95309.0,0.006]
[1734934796665,0.00022628,95310.0,95309.0,0.00704911]
[1734934797392,0.00022628,95310.0,95309.0,0.00104911]
[1734934797600,0.00022628,95310.0,95309.0,0.1013084]
[1734934797932,0.00022628,95310.0,95309.0,0.10235742]
[1734934798343,0.00022628,95310.0,95309.0,0.17915742]
[1734934798652,0.00022628,95310.0,95309.0,0.18115742]
[1734934799083,0.00022628,95310.0,95309.0,0.17915742]
[1734934799278,0.00022628,95310.0,95309.0,0.18615742]
[1734934799509,0.00022628,95310.0,95309.0,0.18015742]
[1734934799835,0.00022628,95310.0,95309.0,0.10635742]
[1734934802221,0.00022628,95310.0,95309.0,0.25635742]
[1734934802437,0.00022628,95310.0,95309.0,0.3553084]
[1734934802644,0.00022628,95310.0,95309.0,0.5059084]
[1734934803287,0.00022628,95310.0,95309.0,0.5029084]
[1734934803422,0.00022628,95310.0,95309.0,0.59711639]
[1734934804222,0.00022628,95310.0,95309.0,0.59611639]
[1734934804649,0.00422628,95310.0,95309.0,0.5019084]
[1734934805126,0.00022628,95310.0,95309.0,0.5019084]
[1734934805737,0.00022628,95310.0,95309.0,0.5039084]
[1734934805957,0.000171,95341.0,95338.0,0.209779]
[1734934806303,0.00070707,95341.0,95340.0,0.209775]
[1734934806553,0.00070707,95341.0,95340.0,0.4610834]
[1734934806758,0.0300855,95343.0,95340.0,0.4610834]
[1734934806759,5.7e-07,95343.0,95342.0,0.489771]
[1734934806969,0.0001613,95343.0,95342.0,0.7140794]
[1734934807436,8.56e-05,95364.0,95363.0,0.389724]
[1734934807666,8.56e-05,95364.0,95363.0,0.4910324]
[1734934808649,8.56e-05,95364.0,95363.0,0.51156521]
[1734934809921,8.56e-05,95364.0,95363.0,0.51456521]
[1734934810737,0.00885181,95374.0,95373.0,0.412702]
[1734934810939,0.00901251,95374.0,95373.0,0.5140104]
[1734934813151,0.00901251,95374.0,95373.0,0.6140104]
[1734934813828,0.00901251,95374.0,95373.0,0.6160104]
[1734934814039,0.00901251,95374.0,95373.0,0.6140104]
[1734934814244,0.00901251,95374.0,95373.0,0.6160104]
[1734934815847,0.00901251,95374.0,95373.0,0.50361888]
[1734934816767,0.00901251,95374.0,95373.0,0.50161888]
[1734934817189,0.00901251,95374.0,95373.0,0.50261888]
[1734934817396,0.00901251,95374.0,95373.0,0.50161888]
[1734934819078,0.01201251,95374.0,95373.0,0.50161888]
[1734934819799,0.00901251,95374.0,95373.0,0.50161888]
[1734934820217,0.00901251,95374.0,95373.0,0.40031048]
[1734934820218,0.01101251,95374.0,95373.0,0.40031048]
[1734934820401,0.01101251,95374.0,95373.0,0.25031048]
[1734934820601,0.01101251,95374.0,95373.0,0.239702]
[1734934820816,0.08851251,95374.0,95373.0,0.03]
[1734934821424,0.08651251,95374.0,95373.0,0.03]
[1734934821826,0.08951251,95374.0,95366.0,0.03]
[1734934822039,0.08951251,95374.0,95367.0,0.209716]
[1734934822244,0.08951251,95374.0,95365.0,0.209719]
[1734934822245,0.08651251,95374.0,95371.0,0.03]
[1734934822442,0.08651251,95374.0,95373.0,0.03]
[1734934822679,0.08851251,95374.0,95373.0,0.03]
[1734934822882,0.08851251,95374.0,95373.0,0.035]
[1734934823227,0.08651251,95374.0,95373.0,0.035]
[1734934823652,0.08651251,95374.0,95373.0,0.03]
[1734934824027,0.08651251,95374.0,95373.0,0.037171]
[1734934824367,0.08659801,95374.0,95373.0,0.037171]
[1734934825736,0.08659801,95374.0,95373.0,0.039171]
[1734934825941,0.08659801,95374.0,95373.0,0.032171]
[1734934826343,0.08659801,95374.0,95373.0,0.037171]
[1734934826755,0.08659801,95374.0,95373.0,0.039171]
[1734934826961,0.08659801,95374.0,95373.0,0.032171]
[1734934827161,0.08659801,95374.0,95373.0,0.002171]
[1734934827558,0.08659801,95374.0,95373.0,0.037171]
[1734934828211,0.08764565,95374.0,95373.0,0.037171]
[1734934828352,0.18790641,95374.0,95373.0,0.037171]
[1734934828557,0.18895405,95374.0,95373.0,0.037171]
[1734934829594,0.18895405,95374.0,95373.0,0.002171]
[1734934830484,0.08659801,95374.0,95373.0,0.000171]
[1734934830922,0.08759801,95374.0,95373.0,0.000171]
[1734934831348,0.08659801,95374.0,95373.0,0.000171]
[1734934833214,0.08659801,95374.0,95373.0,0.001171]
[1734934833420,0.08759801,95374.0,95373.0,0.001171]
[1734934833640,0.08759801,95374.0,95373.0,0.000171]
[1734934833842,0.08759801,95374.0,95373.0,0.001171]
[1734934834038,0.08659801,95374.0,95373.0,0.001171]
[1734934834247,0.08659801,95374.0,95373.0,0.000171]
[1734934834484,0.08759801,95374.0,95373.0,0.000171]
[1734934834724,0.08759801,95374.0,95373.0,0.001171]
[1734934834945,0.08659801,95374.0,95373.0,0.001171]
[1734934835428,0.08759801,95374.0,95373.0,0.001171]
[1734934836057,0.08759801,95374.0,95373.0,0.000171]
[1734934836816,0.08659801,95374.0,95373.0,0.000171]
[1734934837159,0.08759801,95374.0,95373.0,0.000171]
[1734934837624,0.08659801,95374.0,95373.0,0.001171]
[1734934837892,0.00909801,95374.0,95373.0,0.000171]
[1734934838080,0.00909801,95374.0,95373.0,0.13352784]
[1734934838515,0.00909801,95374.0,95373.0,0.13252775]
[1734934838859,0.00909801,95374.0,95373.0,0.29313215]
[1734934839070,0.00909801,95374.0,95373.0,0.2920838]
[1734934839608,0.00909801,95374.0,95373.0,0.4200838]
[1734934839825,0.00909801,95374.0,95373.0,0.4150838]
[1734934840255,0.00909801,95374.0,95373.0,0.4160838]
[1734934840668,0.00909801,95374.0,95373.0,0.3150838]
[1734934840829,0.00909801,95374.0,95373.0,0.2920838]
[1734934841034,0.01209801,95374.0,95373.0,0.2920838]
[1734934841647,0.00909801,95374.0,95373.0,0.2920838]
[1734934841845,0.01109801,95374.0,95373.0,0.2920838]
[1734934842590,0.01109801,95374.0,95373.0,0.2814794]
[1734934843301,0.00909801,95374.0,95373.0,0.4044794]
[1734934843721,0.01109801,95374.0,95373.0,0.4044794]
[1734934844533,0.00909801,95374.0,95373.0,0.4044794]
[1734934844756,0.01109801,95374.0,95373.0,0.4044794]
[1734934845335,0.00909801,95374.0,95373.0,0.4044794]
[1734934846390,0.00909801,95374.0,95373.0,0.2814794]
[1734934846799,0.01109801,95374.0,95373.0,0.2814794]
[1734934850310,0.01109801,95374.0,95373.0,0.3044794]
[1734934852713,0.01109801,95374.0,95373.0,0.6150794]
[1734934853071,0.01109801,95374.0,95373.0,0.5044794]
[1734934853734,0.00909801,95374.0,95373.0,0.5044794]
[1734934854688,0.00909801,95374.0,95373.0,0.5054794]
[1734934855151,0.00909801,95374.0,95373.0,0.5044794]
[1734934856419,0.00909801,95374.0,95373.0,0.73943478]
[1734934856622,0.00909801,95374.0,95373.0,0.74343478]
[1734934856896,0.00909801,95374.0,95373.0,0.73943478]
[1734934857113,0.00909801,95374.0,95373.0,0.5054794]
[1734934857318,0.00909801,95374.0,95373.0,0.5094794]
[1734934857573,0.00909801,95374.0,95373.0,0.5084794]
[1734934857873,0.00909801,95374.0,95373.0,0.6322794]
[1734934858025,0.00909801,95374.0,95373.0,0.6282794]
[1734934858455,0.00909801,95374.0,95373.0,0.6332794]
[1734934859643,0.00909801,95374.0,95373.0,0.6292794]
[1734934860049,0.00909801,95374.0,95373.0,0.6332794]
[1734934860289,0.00909801,95374.0,95373.0,0.7398794]
[1734934860691,0.00909801,95374.0,95373.0,0.7438794]
[1734934860844,0.00909801,95374.0,95373.0,0.7428794]
[1734934861044,0.00909801,95374.0,95373.0,0.3084794]
[1734934861249,0.00909801,95374.0,95373.0,0.3094794]
[1734934861670,0.00909801,95374.0,95373.0,0.3084794]
[1734934862096,0.00909801,95374.0,95373.0,0.3094794]
[1734934862501,0.00909801,95374.0,95373.0,0.2854794]
[1734934862962,0.00909801,95374.0,95373.0,0.1314794]
[1734934863275,0.08529801,95374.0,95373.0,0.031171]
[1734934863632,0.08529801,95374.0,95373.0,0.030171]
[1734934864315,0.08629801,95374.0,95373.0,0.000171]
[1734934864869,0.08529801,95374.0,95373.0,0.000171]
[1734934865153,0.08529801,95374.0,95373.0,0.001171]
[1734934865704,0.13259801,95374.0,95373.0,0.030171]
[1734934865904,0.13364565,95374.0,95373.0,0.030171]
[1734934866333,0.13259801,95374.0,95373.0,0.243873]
[1734934866535,0.00909801,95374.0,95373.0,0.3411814]
[1734934866744,0.00909801,95374.0,95373.0,0.35546737]
[1734934866975,0.00909801,95374.0,95373.0,0.36446737]
[1734934867182,0.00909801,95374.0,95373.0,0.35546737]
[1734934867391,8.56e-05,95392.0,95385.0,0.03]
[1734934867607,8.56e-05,95392.0,95389.0,0.18]
[1734934867809,8.56e-05,95392.0,95391.0,0.18]
[1734934868012,8.56e-05,95392.0,95391.0,0.30535646]
[1734934868147,8.56e-05,95392.0,95391.0,0.3043084]
[1734934868716,8.56e-05,95392.0,95391.0,0.5139714]
[1734934868893,8.56e-05,95392.0,95391.0,0.7139714]
[1734934869530,0.0030856,95392.0,95391.0,0.7139714]
[1734934869885,8.56e-05,95392.0,95391.0,0.7139714]
[1734934870432,8.56e-05,95392.0,95391.0,0.90190246]
[1734934871189,8.55e-05,95406.0,95405.0,0.512632]
[1734934871395,0.00024617,95406.0,95405.0,0.6139404]
[1734934872810,0.00024617,95406.0,95405.0,0.75470639]
[1734934873032,0.00224617,95406.0,95405.0,0.75470639]
[1734934873629,0.00224617,95406.0,95405.0,0.65470639]
[1734934873866,0.00224617,95406.0,95405.0,0.5139404]
[1734934874077,0.00224617,95406.0,95405.0,0.4909404]
[1734934874449,0.00024617,95406.0,95405.0,0.4909404]
[1734934874652,0.00220617,95406.0,95405.0,0.4909404]
[1734934875725,0.00220617,95406.0,95405.0,0.5015735]
[1734934877708,0.00020617,95406.0,95405.0,0.5015735]
[1734934877910,0.00220617,95406.0,95405.0,0.5015735]
[1734934879908,0.03,95432.0,95431.0,0.03]
[1734934881478,0.03,95432.0,95431.0,0.04057926]
[1734934881669,0.03,95432.0,95431.0,0.04657926]
[1734934881871,0.03,95432.0,95431.0,0.036]
[1734934882085,0.03,95432.0,95431.0,0.037]
[1734934882504,0.0300856,95432.0,95431.0,0.036]
[1734934882745,0.0330856,95432.0,95431.0,0.036]
[1734934883140,0.0330856,95432.0,95422.0,0.03]
[1734934883276,0.0330856,95432.0,95428.0,0.03]
[1734934883882,0.0330856,95432.0,95431.0,0.036]
[1734934884082,0.0330856,95432.0,95431.0,0.03]
[1734934884284,0.0300856,95432.0,95431.0,0.03]
[1734934885137,0.0300856,95432.0,95431.0,0.002]
[1734934885687,0.0300856,95432.0,95423.0,0.00104785]
[1734934885891,0.0300856,95432.0,95431.0,0.002]
[1734934886519,0.03113324,95432.0,95431.0,0.002]
[1734934886910,0.03113324,95432.0,95431.0,0.038]
[1734934887109,0.0300856,95432.0,95431.0,0.038]
[1734934887340,0.0300856,95432.0,95431.0,0.03]
[1734934887856,0.03113324,95432.0,95431.0,0.03]
[1734934888247,0.03113324,95432.0,95431.0,0.033]
[1734934888640,0.03113324,95432.0,95431.0,0.03]
[1734934888839,0.15973324,95432.0,95399.0,0.15]
[1734934889037,0.03,95418.0,95411.0,0.03]
[1734934889885,0.03,95427.0,95411.0,0.03]
[1734934890028,0.03,95427.0,95413.0,0.03]
[1734934890228,0.00104764,95426.0,95413.0,0.03]
[1734934890873,0.03104764,95426.0,95413.0,0.03]
[1734934891080,0.03104764,95426.0,95413.0,0.239612]
[1734934891233,0.03,95426.0,95413.0,0.239612]
[1734934891592,0.03,95426.0,95416.0,0.03]
[1734934891944,0.03104764,95430.0,95416.0,0.03]
[1734934892580,0.03,95430.0,95418.0,0.03]
[1734934892897,0.03,95430.0,95413.0,0.01058491]
[1734934892898,0.03,95430.0,95424.0,0.03]
[1734934893116,0.03,95430.0,95426.0,0.03]
[1734934893327,0.03,95429.0,95428.0,0.03]
[1734934893528,0.03,95429.0,95428.0,0.03104778]
[1734934893658,0.03,95429.0,95428.0,0.03]
[1734934894271,8.56e-05,95432.0,95428.0,0.03]
[1734934894596,8.56e-05,95432.0,95429.0,0.24062678]
[1734934894597,8.56e-05,95430.0,95429.0,0.24062678]
[1734934894760,8.56e-05,95430.0,95429.0,0.239579]
[1734934897255,8.56e-05,95430.0,95429.0,0.246579]
[1734934897760,8.56e-05,95430.0,95429.0,0.248579]
[1734934901771,8.56e-05,95430.0,95429.0,0.4998874]
[1734934902281,8.56e-05,95430.0,95429.0,0.7228874]
[1734934902768,8.56e-05,95430.0,95429.0,0.5998874]
[1734934903002,8.56e-05,95430.0,95429.0,0.6228874]
[1734934903238,8.56e-05,95430.0,95429.0,0.75665339]
[1734934903611,8.56e-05,95430.0,95429.0,0.75465339]
[1734934903818,8.56e-05,95430.0,95429.0,0.77605284]
[1734934904132,8.56e-05,95430.0,95429.0,0.64328685]
[1734934904305,8.56e-05,95430.0,95429.0,0.63728685]
[1734934904507,8.56e-05,95430.0,95429.0,0.63528685]
[1734934905324,8.56e-05,95430.0,95429.0,0.8229085]
[1734934905829,8.56e-05,95430.0,95429.0,0.9229085]
[1734934906165,8.56e-05,95430.0,95429.0,0.8229085]
[1734934906303,8.56e-05,95430.0,95429.0,0.63528685]
[1734934908293,8.56e-05,95430.0,95429.0,0.7759641]
[1734934909079,8.56e-05,95430.0,95429.0,0.63528685]
[1734934909458,7e-05,95444.0,95429.0,0.63528685]
[1734934909459,7e-05,95444.0,95431.0,0.389575]
[1734934909725,0.00060577,95444.0,95443.0,0.389549]
[1734934909897,0.00060577,95444.0,95443.0,0.4908574]
[1734934914296,0.03,95462.0,95459.0,0.239514]
[1734934914408,0.0002462,95460.0,95459.0,0.3408224]
[1734934915461,0.0302462,95460.0,95459.0,0.3408224]
[1734934916660,0.0302462,95460.0,95459.0,0.36134251]
[1734934916914,0.0302462,95460.0,95459.0,0.3408224]
[1734934917318,0.0302462,95460.0,95459.0,0.3498224]
[1734934917520,0.0302462,95460.0,95459.0,0.3408224]
[1734934917761,0.0302462,95460.0,95459.0,0.3438224]
[1734934917960,0.0302462,95460.0,95459.0,0.3498224]
[1734934918340,0.0302462,95460.0,95459.0,0.36053908]
[1734934918548,0.0002462,95460.0,95459.0,0.35753908]
[1734934918947,0.0002462,95460.0,95459.0,0.25623068]
[1734934919193,0.1112462,95460.0,95459.0,0.04771668]
[1734934919559,0.1112462,95460.0,95459.0,0.04671668]
[1734934919998,0.1112462,95460.0,95459.0,0.04071668]
[1734934920205,0.1112462,95460.0,95459.0,0.03]
[1734934920453,0.1112462,95460.0,95459.0,0.031]
[1734934920659,0.1112462,95460.0,95459.0,0.03]
[1734934920965,0.1570462,95460.0,95459.0,0.03]
[1734934921168,0.1570462,95460.0,95459.0,0.036]
[1734934921287,0.1570462,95460.0,95459.0,0.03]
[1734934921685,0.1570462,95460.0,95459.0,0.036]
[1734934921889,0.1570462,95460.0,95459.0,0.038]
[1734934922130,0.1570462,95460.0,95459.0,0.032]
[1734934922335,0.0801,95452.0,95446.0,0.03]
[1734934922509,0.03,95447.0,95446.0,0.03]
[1734934922717,0.11114764,95447.0,95446.0,0.03]
[1734934922938,0.209538,95448.0,95429.0,0.030171]
[1734934922939,0.03,95439.0,95429.0,0.030171]
[1734934923118,0.03,95435.0,95429.0,0.030171]
[1734934924005,0.03,95435.0,95430.0,0.03]
[1734934925145,0.03,95443.0,95434.0,0.03]
[1734934925345,0.03,95443.0,95442.0,0.239551]
[1734934927196,0.03,95443.0,95442.0,0.245551]
[1734934928003,0.03,95443.0,95442.0,0.40601645]
[1734934928200,0.03,95443.0,95442.0,0.53032485]
[1734934928405,0.03,95463.0,95443.0,0.15]
[1734934928605,0.03,95463.0,95442.0,0.53032485]
[1734934928606,0.03,95463.0,95459.0,0.239514]
[1734934928765,0.03,95463.0,95459.0,0.3408224]
[1734934929566,0.03,95469.0,95459.0,0.3408224]
[1734934930940,0.03,95469.0,95459.0,0.35408819]
[1734934931144,0.03,95469.0,95459.0,0.35108819]
[1734934931780,0.03,95469.0,95459.0,0.35508819]
[1734934932358,0.03,95469.0,95459.0,0.35608819]
[1734934933822,0.03,95469.0,95459.0,0.35208819]
[1734934933954,0.03,95469.0,95459.0,0.35808819]
[1734934934394,0.03104764,95469.0,95459.0,0.25677979]
[1734934934603,0.03,95469.0,95459.0,0.25677979]
[1734934935074,0.03104764,95469.0,95459.0,0.04726579]
[1734934935266,0.00104764,95468.0,95459.0,0.036]
[1734934935538,0.00104764,95468.0,95459.0,0.03]
[1734934935751,0.1568462,95460.0,95459.0,0.031]
[1734934936511,0.1568462,95460.0,95459.0,0.003]
[1734934937234,0.1568462,95460.0,95459.0,0.002]
[1734934937552,0.1568462,95460.0,95459.0,0.038]
[1734934937793,0.1568462,95460.0,95459.0,0.032]
[1734934938009,0.1568462,95460.0,95459.0,0.036]
[1734934938010,0.25920224,95460.0,95459.0,0.036]
[1734934938182,0.3581546,95460.0,95459.0,0.034]
[1734934938359,0.36614,95447.0,95446.0,0.000171]
[1734934938767,0.4674484,95447.0,95446.0,0.000171]
[1734934940707,0.5674484,95447.0,95446.0,0.000171]
[1734934941671,0.5674484,95447.0,95446.0,0.002171]
[1734934942081,0.2579084,95447.0,95446.0,0.002171]
[1734934942287,0.1566,95447.0,95446.0,0.000171]
[1734934942488,0.15764764,95447.0,95446.0,0.000171]
[1734934942695,0.15764764,95447.0,95446.0,0.001171]
[1734934942899,0.1566,95447.0,95446.0,0.000171]
[1734934943318,0.03,95447.0,95446.0,0.000171]
[1734934944340,0.03104764,95454.0,95446.0,0.000171]
[1734934944758,0.03104764,95454.0,95446.0,0.002171]
[1734934945180,0.03104764,95454.0,95446.0,0.000171]
[1734934945382,0.03104764,95454.0,95446.0,0.007171]
[1734934945578,0.03104764,95454.0,95447.0,0.20954]
[1734934945938,0.03404764,95454.0,95447.0,0.20954]
[1734934946149,0.03404764,95454.0,95446.0,0.000171]
[1734934946530,0.03104764,95454.0,95446.0,0.000171]
[1734934946700,0.03,95453.0,95447.0,0.20954]
[1734934947056,0.03,95453.0,95447.0,0.42008]
[1734934947469,0.03,95453.0,95447.0,0.21054]
[1734934947669,0.03104764,95452.0,95447.0,0.001]
[1734934948081,0.24057664,95452.0,95447.0,0.001]
[1734934948497,0.03104764,95452.0,95446.0,0.003171]
[1734934948735,0.00104764,95452.0,95446.0,0.000171]
[1734934949043,0.03,95457.0,95446.0,0.000171]
[1734934949044,0.03,95457.0,95448.0,0.209538]
[1734934949246,0.03,95457.0,95452.0,0.209527]
[1734934949662,0.03,95457.0,95449.0,0.209535]
[1734934949894,0.03,95459.0,95449.0,0.209535]
[1734934950600,0.03,95459.0,95452.0,0.001]
[1734934951094,0.03,95459.0,95453.0,0.209527]
[1734934951334,0.03,95458.0,95453.0,0.209527]
[1734934952264,0.03,95457.0,95453.0,0.209527]
[1734934952482,0.03,95457.0,95452.0,0.004]
[1734934952653,0.03,95457.0,95449.0,0.210535]
[1734934952860,0.03,95457.0,95453.0,0.005]
[1734934953218,0.00129384,95460.0,95453.0,0.001]
[1734934953416,0.00129384,95460.0,95453.0,0.006]
[1734934953755,0.0002462,95460.0,95454.0,0.209525]
[1734934953974,0.0002462,95460.0,95454.0,0.41905]
[1734934955577,0.0002462,95460.0,95454.0,0.209525]
[1734934955809,0.0002462,95460.0,95455.0,0.209521]
[1734934956034,0.0002462,95460.0,95454.0,0.004]
[1734934956269,0.0002462,95460.0,95454.0,0.209523]
[1734934956523,0.0002462,95460.0,95454.0,0.213523]
[1734934956721,0.0002462,95460.0,95454.0,0.214523]
[1734934957235,0.0002462,95460.0,95454.0,0.213523]
[1734934957706,0.0002462,95460.0,95454.0,0.423047]
[1734934958077,0.0002462,95460.0,95454.0,0.419047]
[1734934958276,0.0002462,95460.0,95454.0,0.423047]
[1734934958477,0.0002462,95460.0,95456.0,0.41904]
[1734934958680,0.0002462,95460.0,95458.0,0.209516]
[1734934958880,0.0002462,95460.0,95459.0,0.1013084]
[1734934959426,0.0002462,95460.0,95459.0,0.10235586]
[1734934959613,0.0002462,95460.0,95459.0,0.10235584]
[1734934961285,0.0032462,95460.0,95459.0,0.10235584]
[1734934962709,0.0032462,95460.0,95458.0,0.209516]
[1734934962871,0.0032462,95460.0,95454.0,0.209523]
[1734934963872,0.209516,95458.0,95450.0,0.01033431]
[1734934964077,0.03104764,95457.0,95441.0,0.24387895]
[1734934964518,0.03104764,95457.0,95441.0,0.15]
[1734934964706,0.03104764,95457.0,95443.0,0.01061241]
[1734934965124,0.03,95457.0,95446.0,0.0012187]
[1734934965334,0.03,95456.0,95452.0,0.209528]
[1734934965533,0.03,95456.0,95452.0,0.419056]
[1734934965751,0.03,95456.0,95453.0,0.10235597]
[1734934965950,0.03,95456.0,95454.0,0.209525]
[1734934966128,0.03,95456.0,95455.0,0.1013084]
[1734934967310,0.0002462,95460.0,95456.0,0.41904]
[1734934967506,0.0002462,95460.0,95457.0,0.10235586]
[1734934968462,0.0002462,95460.0,95458.0,0.209516]
[1734934968646,0.0012462,95460.0,95459.0,0.10235582]
[1734934970307,0.0012462,95460.0,95459.0,0.10635582]
[1734934971244,0.0002462,95460.0,95459.0,0.10635582]
[1734934971603,0.0002462,95460.0,95459.0,0.11535582]
[1734934972688,0.0002462,95460.0,95459.0,0.013]
[1734934981030,0.1111462,95460.0,95459.0,0.013]
[1734934981229,0.1571462,95460.0,95459.0,0.013]
[1734934981344,0.15819384,95460.0,95459.0,0.013]
[1734934982282,0.0002462,95460.0,95459.0,0.013]
[1734934982449,0.0302462,95460.0,95459.0,0.013]
[1734934983291,0.0002462,95460.0,95459.0,0.013]
[1734934986451,0.0002462,95460.0,95459.0,0.02343173]
[1734934989475,0.0002462,95460.0,95459.0,0.12578759]
[1734934992326,0.0002462,95460.0,95459.0,0.31340924]
[1734934992485,0.0002462,95460.0,95459.0,0.31236178]
[1734934994126,0.0002462,95460.0,95459.0,0.12474013]
[1734934994462,0.0002462,95460.0,95459.0,0.12578756]
[1734934994843,0.0002462,95460.0,95459.0,0.12595856]
[1734934998304,0.0002462,95460.0,95459.0,0.46429363]
[1734934998494,0.0002462,95460.0,95459.0,0.4632462]
[1734934998879,0.029754,95469.0,95460.0,0.2]
[1734934999085,0.02297067,95469.0,95468.0,0.4838024]
[1734934999463,0.00500597,95470.0,95469.0,0.203]
[1734934999644,0.00500597,95470.0,95469.0,0.30535552]
[1734934999846,0.1312,95505.0,95487.0,0.239452]
[1734935000050,0.1312,95505.0,95487.0,0.3407604]
[1734935000949,0.083,95505.0,95487.0,0.4907604]
[1734935001311,0.0774,95511.0,95487.0,0.4907604]
[1734935001671,0.00022003,95488.0,95487.0,0.4907604]
[1734935001869,0.00322003,95488.0,95487.0,0.4907604]
[1734935002379,0.00322003,95488.0,95487.0,0.50147958]
[1734935002586,0.00322003,95488.0,95487.0,0.50247958]
[1734935002794,0.00022003,95488.0,95487.0,0.50247958]
[1734935003212,0.00022003,95488.0,95487.0,0.50147958]
[1734935004403,0.00222003,95488.0,95487.0,0.50147958]
[1734935004930,0.0752,95520.0,95492.0,0.1]
[1734935005130,0.0752,95520.0,95501.0,0.389421]
[1734935005364,0.0478,95524.0,95501.0,0.4907294]
[1734935006751,0.00104764,95523.0,95501.0,0.4907294]
[1734935007060,0.00104764,95523.0,95501.0,0.58460902]
[1734935007258,0.00104764,95523.0,95501.0,0.58860902]
[1734935007661,0.00104764,95523.0,95501.0,0.59760902]
[1734935007843,0.00104764,95523.0,95501.0,0.5037294]
[1734935008650,0.00104764,95523.0,95501.0,0.5140317]
[1734935011765,0.0783,95505.0,95501.0,0.3046107]
[1734935011925,0.0783,95505.0,95501.0,0.5140317]
[1734935012689,0.0813,95512.0,95501.0,0.5140317]
[1734935017193,0.00104764,95523.0,95501.0,0.5140317]
[1734935017194,0.0783,95523.0,95501.0,0.5140317]
[1734935017587,0.0783,95523.0,95501.0,0.5961317]
[1734935018586,0.0783,95523.0,95501.0,0.5140317]
[1734935019713,0.00104764,95522.0,95501.0,0.5140317]
[1734935021142,0.0783,95523.0,95501.0,0.5140317]
[1734935024887,0.07934764,95523.0,95501.0,0.5140317]
[1734935025684,0.00104764,95522.0,95501.0,0.5140317]
[1734935025885,0.209384,95519.0,95501.0,0.3046107]
[1734935026060,0.079,95503.0,95501.0,0.0533023]
[1734935032969,0.0452855,95502.0,95501.0,0.0533023]
[1734935033140,0.0452855,95502.0,95501.0,0.043]
[1734935033390,0.0252855,95502.0,95501.0,0.043]
[1734935037562,0.1031855,95502.0,95501.0,0.043]
[1734935038149,0.10423314,95502.0,95501.0,0.043]
[1734935038609,0.10423314,95502.0,95501.0,0.039]
[1734935038817,0.10423314,95502.0,95501.0,0.042]
[1734935039116,0.10423314,95502.0,95501.0,0.003]
[1734935039316,0.10423314,95502.0,95501.0,0.038]
[1734935039317,0.30554154,95502.0,95501.0,0.038]
[1734935039556,0.2274939,95502.0,95501.0,0.038]
[1734935039734,0.3274939,95502.0,95501.0,0.039]
[1734935040160,0.3274939,95502.0,95501.0,0.031]
[1734935040354,0.3274939,95502.0,95501.0,0.001]
[1734935040577,0.3274939,95502.0,95501.0,0.036]
[1734935040805,0.1031855,95502.0,95501.0,0.031]
[1734935040983,0.10423314,95502.0,95501.0,0.031]
[1734935041371,0.1031855,95502.0,95501.0,0.031]
[1734935041585,0.1031855,95502.0,95501.0,0.001]
[1734935042159,0.209421,95501.0,95489.0,0.03]
[1734935042361,0.00104764,95500.0,95489.0,0.03]
[1734935042725,0.00104764,95500.0,95488.0,0.0001712]
[1734935043011,0.209426,95499.0,95488.0,0.0001712]
[1734935043204,0.00104764,95498.0,95488.0,0.0001712]
[1734935043414,0.00104764,95498.0,95490.0,0.03]
[1734935043585,0.00104764,95501.0,95492.0,0.03]
[1734935043743,0.00104764,95500.0,95492.0,0.03]
[1734935044472,0.00104764,95501.0,95494.0,0.03]
[1734935044700,0.10431874,95502.0,95494.0,0.03]
[1734935044906,0.00104764,95500.0,95494.0,0.03]
[1734935045312,0.209426,95499.0,95494.0,0.03]
[1734935045563,0.00104764,95498.0,95489.0,0.03]
[1734935046135,0.00104764,95498.0,95494.0,0.003]
[1734935046495,0.209424,95500.0,95489.0,0.03]
[1734935046699,0.00104764,95499.0,95489.0,0.243446]
[1734935047102,0.00104764,95499.0,95489.0,0.03]
[1734935047861,0.209428,95498.0,95494.0,0.004]
[1734935048063,0.00104764,95497.0,95494.0,0.004]
[1734935048350,0.00104764,95497.0,95494.0,0.005]
[1734935048659,0.1032711,95502.0,95494.0,0.005]
[1734935048660,0.21046864,95501.0,95494.0,0.005]
[1734935048860,0.00104764,95500.0,95494.0,0.005]
[1734935049103,0.209426,95499.0,95494.0,0.004]
[1734935049309,0.1777,95493.0,95490.0,0.03]
[1734935049512,0.1,95489.0,95488.0,0.0001712]
[1734935049729,0.1,95477.0,95460.0,0.28245056]
[1734935049947,0.45953204,95476.0,95474.0,0.14081943]
[1734935050105,0.1777,95475.0,95474.0,0.14095396]
[1734935050306,0.3020084,95475.0,95474.0,0.14095396]
[1734935051154,0.3020084,95475.0,95474.0,0.00013453]
[1734935051988,0.0777,95475.0,95474.0,0.00013453]
[1734935052181,0.0102476,95479.0,95474.0,0.00013453]
[1734935052741,0.00104764,95487.0,95474.0,0.00013453]
[1734935052998,0.09397312,95490.0,95474.0,0.01071507]
[1734935053209,0.0759,95500.0,95482.0,0.209461]
[1734935053443,0.0759,95500.0,95474.0,0.11202347]
[1734935053444,0.0759,95500.0,95490.0,0.209444]
[1734935053614,0.0759,95500.0,95475.0,0.1013084]
[1734935053615,0.21047364,95499.0,95483.0,0.209461]
[1734935053970,0.00104764,95498.0,95483.0,0.418922]
[1734935054170,0.001,95487.0,95483.0,0.418922]
[1734935055960,0.00113324,95502.0,95483.0,0.418922]
[1734935056135,0.00113324,95502.0,95489.0,0.209447]
[1734935056136,8.56e-05,95502.0,95489.0,0.209447]
[1734935056546,8.56e-05,95502.0,95496.0,0.209431]
[1734935056723,8.56e-05,95502.0,95490.0,0.1013084]
[1734935057265,8.56e-05,95502.0,95497.0,0.209428]
[1734935057407,8.56e-05,95502.0,95491.0,0.209443]
[1734935058544,8.56e-05,95502.0,95492.0,0.20944]
[1734935059782,8.56e-05,95502.0,95492.0,0.21344]
[1734935060220,8.56e-05,95502.0,95499.0,0.209425]